[Event "*** SCC Grand Prix: Titled Tuesday Blitz"]
[Site "Chess.com"]
[Date "2020.07.14"]
[Round "1"]
[White "VALPARAISO37"]
[Black "Arjun2002"]
[Result "0-1"]
[WhiteElo "2333"]
[BlackElo "2652"]
[TimeControl "180+1"]
[EndTime "10:07:19 PDT"]
[Termination "Arjun2002 won on time"]

1. d4 {[%clk 0:03:00.9]} 1... d5 {[%clk 0:02:57.8]} 2. c4 {[%clk 0:03:00.9]}
2... c6 {[%clk 0:02:57.6]} 3. Nc3 {[%clk 0:03:00.3]} 3... Nf6 {[%clk 0:02:57.3]}
4. e3 {[%clk 0:03:00.6]} 4... e6 {[%clk 0:02:56.1]} 5. Nf3 {[%clk 0:03:00.3]}
5... Nbd7 {[%clk 0:02:55.6]} 6. Bd3 {[%clk 0:03:00.2]} 6... dxc4 {[%clk
0:02:54.4]} 7. Bxc4 {[%clk 0:03:00.5]} 7... b5 {[%clk 0:02:54.9]} 8. Be2 {[%clk
0:02:59.1]} 8... a6 {[%clk 0:02:41.7]} 9. e4 {[%clk 0:02:58.1]} 9... Bb7 {[%clk
0:02:35.6]} 10. e5 {[%clk 0:02:56.5]} 10... b4 {[%clk 0:02:29.1]} 11. exf6
{[%clk 0:02:56.2]} 11... bxc3 {[%clk 0:02:29]} 12. fxg7 {[%clk 0:02:55.1]} 12...
cxb2 {[%clk 0:02:22.3]} 13. gxh8=Q {[%clk 0:02:53.6]} 13... bxa1=Q {[%clk
0:02:21.9]} 14. O-O {[%clk 0:02:51.2]} 14... Qxa2 {[%clk 0:02:14.7]} 15. Bg5
{[%clk 0:02:40.2]} 15... Qda5 {[%clk 0:02:10.3]} 16. Qxh7 {[%clk 0:02:36.3]}
16... Q2d5 {[%clk 0:01:54.9]} 17. Qdb1 {[%clk 0:02:32.2]} 17... Rb8 {[%clk
0:01:51.5]} 18. Rd1 {[%clk 0:02:03.9]} 18... Ba8 {[%clk 0:01:41]} 19. Qbg6
{[%clk 0:01:56]} 19... e5 {[%clk 0:01:05.3]} 20. dxe5 {[%clk 0:01:01.6]} 20...
fxg6 {[%clk 0:01:02.4]} 21. Rxd5 {[%clk 0:00:55.3]} 21... Qxd5 {[%clk
0:00:58.9]} 22. Qxg6+ {[%clk 0:00:54.4]} 22... Qf7 {[%clk 0:00:57.6]} 23. Qc2
{[%clk 0:00:28.4]} 23... c5 {[%clk 0:00:52.2]} 24. Bc4 {[%clk 0:00:28.3]} 24...
Bd5 {[%clk 0:00:51.8]} 25. Bxd5 {[%clk 0:00:28.4]} 25... Qxd5 {[%clk 0:00:51.5]}
26. h4 {[%clk 0:00:26.8]} 26... Nxe5 {[%clk 0:00:26]} 27. Qe2 {[%clk 0:00:23.7]}
27... Bd6 {[%clk 0:00:23.7]} 28. Bf4 {[%clk 0:00:15.4]} 28... Rb1+ {[%clk
0:00:19]} 29. Kh2 {[%clk 0:00:14.6]} 29... Rb4 {[%clk 0:00:17.2]} 30. Bxe5
{[%clk 0:00:12.4]} 30... Re4 {[%clk 0:00:17.1]} 31. Qxa6 {[%clk 0:00:11]} 31...
Bxe5+ {[%clk 0:00:16.6]} 32. Nxe5 {[%clk 0:00:11.2]} 32... Qxe5+ {[%clk
0:00:16.8]} 33. Kh3 {[%clk 0:00:09.3]} 33... Qe6+ {[%clk 0:00:16.3]} 34. Qxe6+
{[%clk 0:00:09.5]} 34... Rxe6 {[%clk 0:00:17.2]} 35. h5 {[%clk 0:00:09.5]} 35...
c4 {[%clk 0:00:17.4]} 36. h6 {[%clk 0:00:09.6]} 36... Rxh6+ {[%clk 0:00:17]} 0-1

[Event "*** SCC Grand Prix: Titled Tuesday Blitz"]
[Site "Chess.com"]
[Date "2020.07.14"]
[Round "1"]
[White "guillembaches"]
[Black "chito89"]
[Result "1-0"]
[WhiteElo "2428"]
[BlackElo "2799"]
[TimeControl "180+1"]
[EndTime "10:07:20 PDT"]
[Termination "guillembaches won by resignation"]

1. e4 {[%clk 0:03:00.8]} 1... c5 {[%clk 0:02:59.1]} 2. Nf3 {[%clk 0:03:00.6]}
2... e6 {[%clk 0:02:59.1]} 3. g3 {[%clk 0:03:00.9]} 3... Nc6 {[%clk 0:02:55.3]}
4. Bg2 {[%clk 0:03:00.5]} 4... e5 {[%clk 0:02:54.1]} 5. O-O {[%clk 0:02:57.8]}
5... Nf6 {[%clk 0:02:54.3]} 6. Qe2 {[%clk 0:02:55.3]} 6... d6 {[%clk 0:02:53]}
7. Nc3 {[%clk 0:02:54.8]} 7... g6 {[%clk 0:02:44.4]} 8. Nd5 {[%clk 0:02:53.9]}
8... Bg7 {[%clk 0:02:39.2]} 9. c3 {[%clk 0:02:52.4]} 9... O-O {[%clk 0:02:34.7]}
10. d3 {[%clk 0:02:42]} 10... Nxd5 {[%clk 0:02:32.3]} 11. exd5 {[%clk
0:02:42.9]} 11... Ne7 {[%clk 0:02:33]} 12. Ne1 {[%clk 0:02:38.3]} 12... b5
{[%clk 0:02:20.5]} 13. a4 {[%clk 0:02:37.2]} 13... b4 {[%clk 0:02:20.2]} 14. Bd2
{[%clk 0:02:32.8]} 14... a5 {[%clk 0:02:10.5]} 15. Nc2 {[%clk 0:02:31.2]} 15...
Ba6 {[%clk 0:02:10.5]} 16. Ne3 {[%clk 0:02:28.6]} 16... f5 {[%clk 0:01:55.9]}
17. Nc4 {[%clk 0:02:23.5]} 17... Rb8 {[%clk 0:01:42.2]} 18. f4 {[%clk
0:02:14.2]} 18... Bxc4 {[%clk 0:01:39.2]} 19. dxc4 {[%clk 0:02:15.1]} 19... e4
{[%clk 0:01:39.9]} 20. cxb4 {[%clk 0:02:02.2]} 20... cxb4 {[%clk 0:01:34.9]} 21.
b3 {[%clk 0:01:58]} 21... Qb6+ {[%clk 0:01:33.6]} 22. Be3 {[%clk 0:01:47.5]}
22... Bd4 {[%clk 0:01:33.1]} 23. Bxd4 {[%clk 0:01:47.2]} 23... Qxd4+ {[%clk
0:01:34]} 24. Kh1 {[%clk 0:01:47.4]} 24... Nc8 {[%clk 0:01:29.2]} 25. g4 {[%clk
0:01:37.6]} 25... Nb6 {[%clk 0:01:27.7]} 26. gxf5 {[%clk 0:01:34.1]} 26... gxf5
{[%clk 0:01:28.6]} 27. Rg1 {[%clk 0:01:34.1]} 27... Kh8 {[%clk 0:01:27.2]} 28.
Bh3 {[%clk 0:01:26.6]} 28... Nd7 {[%clk 0:00:54.2]} 29. Rad1 {[%clk 0:01:22.6]}
29... Qf6 {[%clk 0:00:51.8]} 30. Rg5 {[%clk 0:01:19.3]} 30... Nc5 {[%clk
0:00:51]} 31. Bxf5 {[%clk 0:01:08.8]} 31... Qc3 {[%clk 0:00:37.9]} 32. Rg3
{[%clk 0:00:52.4]} 32... Qf6 {[%clk 0:00:18.3]} 33. Bxh7 {[%clk 0:00:49.4]}
33... Nd3 {[%clk 0:00:16.9]} 34. Bxe4 {[%clk 0:00:40.9]} 34... Nxf4 {[%clk
0:00:16.2]} 35. Rdg1 {[%clk 0:00:37.3]} 35... Rbe8 {[%clk 0:00:10.5]} 36. Qg4
{[%clk 0:00:29.1]} 36... Qh6 {[%clk 0:00:08.6]} 37. Bb1 {[%clk 0:00:17.9]} 37...
Re2 {[%clk 0:00:07.8]} 38. Qg8+ {[%clk 0:00:17.1]} 1-0

[Event "*** SCC Grand Prix: Titled Tuesday Blitz"]
[Site "Chess.com"]
[Date "2020.07.14"]
[Round "1"]
[White "VMikhalevski"]
[Black "rynos0411"]
[Result "1-0"]
[WhiteElo "2800"]
[BlackElo "2404"]
[TimeControl "180+1"]
[EndTime "10:07:20 PDT"]
[Termination "VMikhalevski won by resignation"]

1. d4 {[%clk 0:03:00]} 1... d5 {[%clk 0:02:59.4]} 2. c4 {[%clk 0:02:59.4]} 2...
c6 {[%clk 0:02:56.1]} 3. cxd5 {[%clk 0:02:58.9]} 3... cxd5 {[%clk 0:02:56.1]} 4.
Bg5 {[%clk 0:02:59.5]} 4... f6 {[%clk 0:02:54]} 5. Bd2 {[%clk 0:02:52.9]} 5...
e5 {[%clk 0:02:52.3]} 6. dxe5 {[%clk 0:02:52.3]} 6... fxe5 {[%clk 0:02:53.2]} 7.
e4 {[%clk 0:02:52.5]} 7... Nf6 {[%clk 0:02:48.5]} 8. exd5 {[%clk 0:02:49.5]}
8... Qxd5 {[%clk 0:02:44]} 9. Nc3 {[%clk 0:02:43.4]} 9... Qd8 {[%clk 0:02:39.9]}
10. Nf3 {[%clk 0:02:41.9]} 10... Nc6 {[%clk 0:02:38.7]} 11. Bb5 {[%clk
0:02:40.3]} 11... Bd6 {[%clk 0:02:38.7]} 12. O-O {[%clk 0:02:25.9]} 12... O-O
{[%clk 0:02:34.9]} 13. Ng5 {[%clk 0:02:24.5]} 13... Qe7 {[%clk 0:02:26.9]} 14.
Bxc6 {[%clk 0:02:20.3]} 14... bxc6 {[%clk 0:02:26.7]} 15. Qc2 {[%clk 0:02:09.1]}
15... h6 {[%clk 0:02:24.1]} 16. Nge4 {[%clk 0:02:08]} 16... Nxe4 {[%clk
0:02:22.3]} 17. Nxe4 {[%clk 0:02:05.7]} 17... c5 {[%clk 0:01:25.4]} 18. Rfd1
{[%clk 0:02:01]} 18... Bf5 {[%clk 0:01:22.3]} 19. Qc4+ {[%clk 0:01:56.1]} 19...
Kh7 {[%clk 0:01:19.1]} 20. Be3 {[%clk 0:01:47.9]} 20... Rad8 {[%clk 0:01:00]}
21. b3 {[%clk 0:01:37.8]} 21... Be6 {[%clk 0:00:43.6]} 22. Qe2 {[%clk
0:01:35.1]} 22... c4 {[%clk 0:00:37.7]} 23. bxc4 {[%clk 0:01:32.4]} 23... Qc7
{[%clk 0:00:31.6]} 24. c5 {[%clk 0:01:24.9]} 24... Be7 {[%clk 0:00:30.9]} 25.
Ng3 {[%clk 0:01:12.1]} 25... Rxd1+ {[%clk 0:00:27.3]} 26. Rxd1 {[%clk
0:01:10.9]} 26... Rd8 {[%clk 0:00:28.2]} 27. Rc1 {[%clk 0:01:10.5]} 27... Qc6
{[%clk 0:00:25.6]} 28. a3 {[%clk 0:01:02]} 28... Rd5 {[%clk 0:00:25.5]} 29. h3
{[%clk 0:00:53.6]} 29... Bf7 {[%clk 0:00:18.5]} 30. Qc2+ {[%clk 0:00:40.7]}
30... Bg6 {[%clk 0:00:18.2]} 31. Qc4 {[%clk 0:00:40.7]} 31... Bf7 {[%clk
0:00:15.4]} 32. Kh2 {[%clk 0:00:40.4]} 32... Be6 {[%clk 0:00:11.1]} 33. Qe4+
{[%clk 0:00:38.4]} 33... Kg8 {[%clk 0:00:11.6]} 34. Qg6 {[%clk 0:00:37.5]} 34...
Bd7 {[%clk 0:00:06.6]} 35. Qc2 {[%clk 0:00:28.2]} 35... Kf7 {[%clk 0:00:02.4]}
36. Nf5 {[%clk 0:00:22.1]} 36... Bf6 {[%clk 0:00:02.4]} 37. Nd6+ {[%clk
0:00:21.1]} 37... Kg8 {[%clk 0:00:02.9]} 38. Qg6 {[%clk 0:00:18.9]} 38... Qc7
{[%clk 0:00:01.7]} 39. Qf7+ {[%clk 0:00:18.7]} 39... Kh7 {[%clk 0:00:01.6]} 40.
Qxd5 {[%clk 0:00:19.3]} 1-0

[Event "*** SCC Grand Prix: Titled Tuesday Blitz"]
[Site "Chess.com"]
[Date "2020.07.14"]
[Round "1"]
[White "artichaud"]
[Black "Malysch"]
[Result "0-1"]
[WhiteElo "2053"]
[BlackElo "2474"]
[TimeControl "180+1"]
[EndTime "10:07:20 PDT"]
[Termination "Malysch won on time"]

1. e4 {[%clk 0:03:00]} 1... d5 {[%clk 0:02:58.4]} 2. exd5 {[%clk 0:02:59.6]}
2... Qxd5 {[%clk 0:02:59.3]} 3. Nc3 {[%clk 0:02:59.1]} 3... Qd6 {[%clk
0:02:59.1]} 4. Nf3 {[%clk 0:02:57.2]} 4... Nf6 {[%clk 0:02:58.9]} 5. d4 {[%clk
0:02:41.1]} 5... a6 {[%clk 0:02:58.6]} 6. g3 {[%clk 0:02:40.7]} 6... Bg4 {[%clk
0:02:56.6]} 7. Bg2 {[%clk 0:02:38.6]} 7... Nc6 {[%clk 0:02:55.1]} 8. h3 {[%clk
0:02:27.4]} 8... Bh5 {[%clk 0:02:53.4]} 9. g4 {[%clk 0:02:26.4]} 9... Bg6 {[%clk
0:02:52.6]} 10. Be3 {[%clk 0:02:20.7]} 10... O-O-O {[%clk 0:02:51.8]} 11. Qe2
{[%clk 0:02:18.1]} 11... e6 {[%clk 0:02:43.1]} 12. O-O-O {[%clk 0:02:14.9]}
12... Qb4 {[%clk 0:02:24.4]} 13. Ne5 {[%clk 0:01:06.2]} 13... Nxe5 {[%clk
0:02:00.4]} 14. dxe5 {[%clk 0:01:05]} 14... Nd7 {[%clk 0:02:00.9]} 15. f4 {[%clk
0:01:00.2]} 15... Bc5 {[%clk 0:01:57.5]} 16. a3 {[%clk 0:00:54.8]} 16... Qb6
{[%clk 0:01:50.1]} 17. Bxc5 {[%clk 0:00:52.5]} 17... Nxc5 {[%clk 0:01:49.4]} 18.
Rxd8+ {[%clk 0:00:43.5]} 18... Rxd8 {[%clk 0:01:47.9]} 19. Rd1 {[%clk
0:00:44.4]} 19... Rxd1+ {[%clk 0:01:31.9]} 20. Nxd1 {[%clk 0:00:28.7]} 20... a5
{[%clk 0:01:08.7]} 21. Qf2 {[%clk 0:00:22.4]} 21... f6 {[%clk 0:00:42.9]} 22.
exf6 {[%clk 0:00:19.9]} 22... gxf6 {[%clk 0:00:42.3]} 23. Qe3 {[%clk 0:00:18.2]}
23... Kb8 {[%clk 0:00:37.5]} 24. h4 {[%clk 0:00:17.9]} 24... h6 {[%clk
0:00:27.8]} 25. Qd2 {[%clk 0:00:16.3]} 25... Ka7 {[%clk 0:00:25]} 26. Ne3 {[%clk
0:00:14.9]} 26... a4 {[%clk 0:00:17.5]} 27. Nc4 {[%clk 0:00:13.7]} 27... Qb5
{[%clk 0:00:17.5]} 28. Qa5+ {[%clk 0:00:10.9]} 28... Qxa5 {[%clk 0:00:17.6]} 29.
Nxa5 {[%clk 0:00:11.8]} 29... c6 {[%clk 0:00:17.2]} 30. Nc4 {[%clk 0:00:11.5]}
30... Kb8 {[%clk 0:00:17]} 31. g5 {[%clk 0:00:09.4]} 31... hxg5 {[%clk 0:00:16]}
32. fxg5 {[%clk 0:00:09.1]} 32... fxg5 {[%clk 0:00:15.5]} 33. Ne5 {[%clk
0:00:07.9]} 33... Bf5 {[%clk 0:00:14.1]} 34. hxg5 {[%clk 0:00:07.1]} 34... Kc7
{[%clk 0:00:13.2]} 35. g6 {[%clk 0:00:05.8]} 35... Kd6 {[%clk 0:00:13.2]} 36. g7
{[%clk 0:00:04.7]} 36... Bh7 {[%clk 0:00:13.6]} 0-1

[Event "*** SCC Grand Prix: Titled Tuesday Blitz"]
[Site "Chess.com"]
[Date "2020.07.14"]
[Round "1"]
[White "AsaHoffmann"]
[Black "nrvisakh"]
[Result "0-1"]
[WhiteElo "2398"]
[BlackElo "2769"]
[TimeControl "180+1"]
[EndTime "10:07:21 PDT"]
[Termination "nrvisakh won on time"]

1. d4 {[%clk 0:02:52.8]} 1... Nf6 {[%clk 0:02:59.2]} 2. Bg5 {[%clk 0:02:48.3]}
2... Ne4 {[%clk 0:02:40.5]} 3. Bf4 {[%clk 0:02:46.8]} 3... d5 {[%clk 0:02:37.7]}
4. f3 {[%clk 0:02:46.1]} 4... Nf6 {[%clk 0:02:36.1]} 5. e4 {[%clk 0:02:45.5]}
5... dxe4 {[%clk 0:02:35.5]} 6. Nc3 {[%clk 0:02:44.6]} 6... exf3 {[%clk
0:02:29.2]} 7. Nxf3 {[%clk 0:02:43.3]} 7... Bg4 {[%clk 0:02:20.8]} 8. Bc4 {[%clk
0:02:41.4]} 8... e6 {[%clk 0:02:20.8]} 9. h3 {[%clk 0:02:40.7]} 9... Bh5 {[%clk
0:02:15.5]} 10. g4 {[%clk 0:02:40]} 10... Bg6 {[%clk 0:02:15.1]} 11. Ne5 {[%clk
0:02:39.3]} 11... Be7 {[%clk 0:02:12.7]} 12. h4 {[%clk 0:02:33.2]} 12... Be4
{[%clk 0:02:12.1]} 13. Nxe4 {[%clk 0:02:22.4]} 13... Nxe4 {[%clk 0:02:11.7]} 14.
g5 {[%clk 0:02:09.6]} 14... Nd6 {[%clk 0:02:03]} 15. Bb3 {[%clk 0:02:03.3]}
15... c5 {[%clk 0:01:58]} 16. Qf3 {[%clk 0:01:46.1]} 16... Qa5+ {[%clk 0:01:06]}
17. Bd2 {[%clk 0:01:36]} 17... Qb5 {[%clk 0:01:05.6]} 18. a4 {[%clk 0:01:25.3]}
18... Qb6 {[%clk 0:01:04.8]} 19. a5 {[%clk 0:01:24.5]} 19... Qc7 {[%clk
0:01:04.6]} 20. Ba4+ {[%clk 0:01:11.3]} 20... Kf8 {[%clk 0:00:48.2]} 21. O-O
{[%clk 0:01:03]} 21... Nf5 {[%clk 0:00:47.3]} 22. c3 {[%clk 0:00:40.5]} 22...
Bd6 {[%clk 0:00:41.8]} 23. Bf4 {[%clk 0:00:37.7]} 23... Nc6 {[%clk 0:00:39.2]}
24. Bc2 {[%clk 0:00:30.4]} 24... Nxe5 {[%clk 0:00:32.9]} 25. dxe5 {[%clk
0:00:29.7]} 25... Bxe5 {[%clk 0:00:33.8]} 26. Bxf5 {[%clk 0:00:28]} 26... exf5
{[%clk 0:00:25.7]} 27. Bxe5 {[%clk 0:00:24.8]} 27... Qxe5 {[%clk 0:00:25.6]} 28.
Rae1 {[%clk 0:00:23.2]} 28... Qc7 {[%clk 0:00:22.3]} 29. Qxf5 {[%clk 0:00:21.9]}
29... Qg3+ {[%clk 0:00:19.2]} 30. Kh1 {[%clk 0:00:21.1]} 30... Qxh4+ {[%clk
0:00:19.1]} 31. Kg2 {[%clk 0:00:20.6]} 31... Qh5 {[%clk 0:00:13.6]} 32. Qxc5+
{[%clk 0:00:17.4]} 32... Kg8 {[%clk 0:00:13.7]} 33. Rf4 {[%clk 0:00:13.1]} 33...
h6 {[%clk 0:00:10.2]} 34. Ref1 {[%clk 0:00:05.1]} 34... Rf8 {[%clk 0:00:09.9]}
0-1

[Event "*** SCC Grand Prix: Titled Tuesday Blitz"]
[Site "Chess.com"]
[Date "2020.07.14"]
[Round "1"]
[White "elamier"]
[Black "Ginger_GM"]
[Result "0-1"]
[WhiteElo "2314"]
[BlackElo "2627"]
[TimeControl "180+1"]
[EndTime "10:07:21 PDT"]
[Termination "Ginger_GM won by checkmate"]

1. d4 {[%clk 0:03:00.1]} 1... e6 {[%clk 0:02:58.6]} 2. Nf3 {[%clk 0:02:59.3]}
2... f5 {[%clk 0:02:58.1]} 3. d5 {[%clk 0:02:48.9]} 3... exd5 {[%clk 0:02:43.3]}
4. Qxd5 {[%clk 0:02:43.3]} 4... d6 {[%clk 0:02:28.2]} 5. Ng5 {[%clk 0:02:36.7]}
5... Qe7 {[%clk 0:02:25.5]} 6. Nxh7 {[%clk 0:02:27.9]} 6... Rxh7 {[%clk
0:02:25.2]} 7. Qxg8 {[%clk 0:02:25.7]} 7... Rh4 {[%clk 0:02:25]} 8. Qb3 {[%clk
0:02:21.5]} 8... Nc6 {[%clk 0:02:15.1]} 9. e3 {[%clk 0:02:14.7]} 9... f4 {[%clk
0:01:47.5]} 10. Be2 {[%clk 0:01:57.5]} 10... Bd7 {[%clk 0:01:09.9]} 11. Nc3
{[%clk 0:01:38]} 11... O-O-O {[%clk 0:01:07.9]} 12. Bd2 {[%clk 0:01:28.4]} 12...
fxe3 {[%clk 0:01:01]} 13. Bxe3 {[%clk 0:01:27.7]} 13... Be6 {[%clk 0:00:50]} 14.
Nd5 {[%clk 0:01:20]} 14... Qf7 {[%clk 0:00:46.8]} 15. O-O-O {[%clk 0:01:06.3]}
15... Nb4 {[%clk 0:00:28.8]} 16. c4 {[%clk 0:00:41.8]} 16... Nxd5 {[%clk
0:00:12.4]} 17. cxd5 {[%clk 0:00:41.1]} 17... Bf5 {[%clk 0:00:11.8]} 18. Bg5
{[%clk 0:00:36.3]} 18... Be7 {[%clk 0:00:11.9]} 19. Bxh4 {[%clk 0:00:34.5]}
19... Bxh4 {[%clk 0:00:12.2]} 20. Qa4 {[%clk 0:00:25.5]} 20... Qe7 {[%clk
0:00:06.6]} 21. Bg4 {[%clk 0:00:21.3]} 21... Bg5+ {[%clk 0:00:05.6]} 22. f4
{[%clk 0:00:19.7]} 22... Qe3+ {[%clk 0:00:05.6]} 23. Rd2 {[%clk 0:00:11.4]}
23... Bxg4 {[%clk 0:00:05.8]} 24. fxg5 {[%clk 0:00:11]} 24... Bf5 {[%clk
0:00:05.5]} 25. Qd4 {[%clk 0:00:03.6]} 25... Qxg5 {[%clk 0:00:03.8]} 26. Rf1
{[%clk 0:00:02.8]} 26... Bh7 {[%clk 0:00:03]} 27. Qf4 {[%clk 0:00:02.8]} 27...
Qg6 {[%clk 0:00:02.8]} 28. g4 {[%clk 0:00:03.1]} 28... Qb1# {[%clk 0:00:02.7]}
0-1

[Event "*** SCC Grand Prix: Titled Tuesday Blitz"]
[Site "Chess.com"]
[Date "2020.07.14"]
[Round "1"]
[White "ailime26"]
[Black "Siniauski"]
[Result "1-0"]
[WhiteElo "1872"]
[BlackElo "2442"]
[TimeControl "180+1"]
[EndTime "10:07:21 PDT"]
[Termination "ailime26 won on time"]

1. e4 {[%clk 0:02:59.8]} 1... Nf6 {[%clk 0:02:59.3]} 2. e5 {[%clk 0:02:32.4]}
2... Nd5 {[%clk 0:02:59.1]} 3. c4 {[%clk 0:02:31.5]} 3... Nb6 {[%clk 0:02:59.2]}
4. d4 {[%clk 0:02:32.4]} 4... d6 {[%clk 0:02:59.3]} 5. exd6 {[%clk 0:02:32.3]}
5... cxd6 {[%clk 0:02:59.8]} 6. Nc3 {[%clk 0:02:32.6]} 6... Nc6 {[%clk
0:02:57.9]} 7. Nf3 {[%clk 0:02:28.6]} 7... g6 {[%clk 0:02:58]} 8. Be3 {[%clk
0:02:26.2]} 8... Bg7 {[%clk 0:02:58]} 9. Be2 {[%clk 0:02:25]} 9... O-O {[%clk
0:02:57.2]} 10. O-O {[%clk 0:02:24.7]} 10... Bg4 {[%clk 0:02:56.8]} 11. b3
{[%clk 0:02:22.1]} 11... d5 {[%clk 0:02:55]} 12. c5 {[%clk 0:02:19]} 12... Nc8
{[%clk 0:02:55.2]} 13. Nd2 {[%clk 0:02:12.6]} 13... Bxe2 {[%clk 0:02:52]} 14.
Nxe2 {[%clk 0:02:11.9]} 14... e6 {[%clk 0:02:50.1]} 15. f4 {[%clk 0:02:05.7]}
15... N8e7 {[%clk 0:02:44.6]} 16. Nf3 {[%clk 0:02:05.1]} 16... Nf5 {[%clk
0:02:43.1]} 17. Bf2 {[%clk 0:02:03.4]} 17... h5 {[%clk 0:02:41.9]} 18. Ne5
{[%clk 0:02:01.7]} 18... Rc8 {[%clk 0:02:18.3]} 19. Qd2 {[%clk 0:01:55.4]} 19...
Bh6 {[%clk 0:01:38.1]} 20. Rad1 {[%clk 0:01:25.1]} 20... Nxe5 {[%clk 0:01:34]}
21. dxe5 {[%clk 0:01:21.8]} 21... b6 {[%clk 0:01:12.9]} 22. b4 {[%clk
0:01:19.4]} 22... bxc5 {[%clk 0:01:09.6]} 23. Bxc5 {[%clk 0:01:18.2]} 23... Re8
{[%clk 0:01:08.8]} 24. Bxa7 {[%clk 0:01:14]} 24... Rc4 {[%clk 0:01:06.1]} 25.
Bc5 {[%clk 0:01:11.1]} 25... Qa8 {[%clk 0:01:02.4]} 26. Rc1 {[%clk 0:01:00.5]}
26... Rd8 {[%clk 0:00:42.5]} 27. Rfd1 {[%clk 0:00:44]} 27... Re4 {[%clk
0:00:32.8]} 28. g3 {[%clk 0:00:38.2]} 28... d4 {[%clk 0:00:20.1]} 29. Qd3 {[%clk
0:00:25.6]} 29... Re3 {[%clk 0:00:18.8]} 30. Qc4 {[%clk 0:00:25.6]} 30... Qe4
{[%clk 0:00:15.6]} 31. Nxd4 {[%clk 0:00:16.4]} 31... Nxg3 {[%clk 0:00:13.9]} 32.
Rd3 {[%clk 0:00:15.5]} 32... Qh1+ {[%clk 0:00:11]} 33. Kf2 {[%clk 0:00:14.9]}
33... Qxh2+ {[%clk 0:00:02.4]} 34. Kxe3 {[%clk 0:00:14.6]} 34... h4 {[%clk
0:00:01.4]} 35. Nf3 {[%clk 0:00:13.4]} 1-0

[Event "*** SCC Grand Prix: Titled Tuesday Blitz"]
[Site "Chess.com"]
[Date "2020.07.14"]
[Round "1"]
[White "praveenb2002"]
[Black "random_mango"]
[Result "1-0"]
[WhiteElo "2734"]
[BlackElo "2387"]
[TimeControl "180+1"]
[EndTime "10:07:22 PDT"]
[Termination "praveenb2002 won by resignation"]

1. d4 {[%clk 0:03:00.9]} 1... d5 {[%clk 0:02:58]} 2. c4 {[%clk 0:03:00.8]} 2...
c6 {[%clk 0:02:58.2]} 3. Nf3 {[%clk 0:02:59]} 3... Nf6 {[%clk 0:02:56.6]} 4. Nc3
{[%clk 0:02:59.3]} 4... a6 {[%clk 0:02:54.8]} 5. c5 {[%clk 0:02:57.3]} 5... Nbd7
{[%clk 0:02:53.8]} 6. Bf4 {[%clk 0:02:57.5]} 6... Nh5 {[%clk 0:02:50.4]} 7. Bd2
{[%clk 0:02:57.7]} 7... Nhf6 {[%clk 0:02:49.2]} 8. Qc2 {[%clk 0:02:50.3]} 8...
e5 {[%clk 0:02:42.3]} 9. dxe5 {[%clk 0:02:45.3]} 9... Ng4 {[%clk 0:02:38.6]} 10.
Na4 {[%clk 0:02:45]} 10... Rb8 {[%clk 0:02:25.8]} 11. Bf4 {[%clk 0:02:41.6]}
11... Nxc5 {[%clk 0:02:16.9]} 12. Nxc5 {[%clk 0:02:34]} 12... Qa5+ {[%clk
0:02:16.1]} 13. Qc3 {[%clk 0:02:33.7]} 13... Qxc5 {[%clk 0:02:08.6]} 14. e3
{[%clk 0:02:31.8]} 14... Be6 {[%clk 0:01:55.2]} 15. h3 {[%clk 0:02:24]} 15...
Nh6 {[%clk 0:01:52]} 16. Bd3 {[%clk 0:02:23]} 16... Rd8 {[%clk 0:01:40.5]} 17.
O-O {[%clk 0:02:21.5]} 17... Nf5 {[%clk 0:01:36]} 18. Qb3 {[%clk 0:02:03.8]}
18... Qb4 {[%clk 0:01:02.8]} 19. Qc2 {[%clk 0:02:02.1]} 19... g6 {[%clk
0:00:59]} 20. Bg5 {[%clk 0:02:00.1]} 20... Be7 {[%clk 0:00:57.7]} 21. a3 {[%clk
0:01:55.6]} 21... Qb6 {[%clk 0:00:55.4]} 22. Bf6 {[%clk 0:01:46.7]} 22... Bxf6
{[%clk 0:00:55]} 23. exf6 {[%clk 0:01:47.6]} 23... O-O {[%clk 0:00:55.9]} 24. g4
{[%clk 0:01:35.1]} 24... Nd6 {[%clk 0:00:55.9]} 25. Nd4 {[%clk 0:01:34.3]} 25...
Bc8 {[%clk 0:00:53.7]} 26. b4 {[%clk 0:01:33.1]} 26... Rfe8 {[%clk 0:00:51.9]}
27. Qe2 {[%clk 0:01:29.8]} 27... Ne4 {[%clk 0:00:51.5]} 28. Qf3 {[%clk
0:01:29.9]} 28... c5 {[%clk 0:00:51.5]} 29. Bxe4 {[%clk 0:01:24.1]} 29... dxe4
{[%clk 0:00:51.2]} 30. bxc5 {[%clk 0:01:19.2]} 30... Qxc5 {[%clk 0:00:47.1]} 31.
Qf4 {[%clk 0:01:16.3]} 31... Qe5 {[%clk 0:00:47.1]} 32. Qxe5 {[%clk 0:01:05.8]}
32... Rxe5 {[%clk 0:00:48]} 33. Rfc1 {[%clk 0:01:06.1]} 33... h5 {[%clk
0:00:45.7]} 34. Kg2 {[%clk 0:00:53.6]} 34... hxg4 {[%clk 0:00:45.1]} 35. hxg4
{[%clk 0:00:54.5]} 35... Bxg4 {[%clk 0:00:45.4]} 36. Kg3 {[%clk 0:00:55.2]}
36... Bh5 {[%clk 0:00:44.8]} 37. Rc7 {[%clk 0:00:52.1]} 37... Rdd5 {[%clk
0:00:43.1]} 38. Kf4 {[%clk 0:00:45.9]} 38... g5+ {[%clk 0:00:37.5]} 39. Kg3
{[%clk 0:00:45.8]} 39... Rd6 {[%clk 0:00:37]} 40. Rh1 {[%clk 0:00:40.7]} 40...
g4 {[%clk 0:00:35.2]} 41. Re7 {[%clk 0:00:37.2]} 41... Rg5 {[%clk 0:00:31.4]}
42. Kf4 {[%clk 0:00:32.2]} 42... Rdd5 {[%clk 0:00:29.8]} 43. Rxb7 {[%clk
0:00:29]} 43... Kh7 {[%clk 0:00:29.9]} 44. Rxf7+ {[%clk 0:00:28]} 44... Kg6
{[%clk 0:00:30.4]} 45. Rf8 {[%clk 0:00:21.8]} 45... g3 {[%clk 0:00:30.9]} 46.
Kxe4 {[%clk 0:00:14.1]} 46... gxf2 {[%clk 0:00:28.8]} 47. Rf1 {[%clk 0:00:14.3]}
47... Rg2 {[%clk 0:00:25.6]} 48. Kxd5 {[%clk 0:00:13.8]} 1-0